Workbook

Sheet Form 3CA
B6: FORM NO. 3CA
B7: [See rule 6G(1)(a)]
B9: Audit report under section 44AB of the Income - tax Act, 1961, in a case where the accounts of the business or profession of a person have been audited under any other law
A12: 1 | B12: We report that the statutory audit of M/s ABC LIMITED, having its registered office at Address PAN No. AAAAA0000A was conducted by us, M/s. XYZ and associates, Chartered Accountants, in pursuance of the provisions of the Companies Act, 2013, and we annex hereto a copy of their audit report dated ________________ along with a copy each of –
A17: (a) | B17: the audited Statement of Profit and Loss for the period beginning from April 1, 2017 to ending on March 31, 2018.
A20: (b) | B20: the audited balance sheet as at 31st March, 2018
A22: ('c) | B22: documents declared by the said Act to be part of, or annexed to, the Statement of profit and loss and Balance Sheet.
A25: 2 | B25: The Statement of particulars required to be furnished under section 44AB is annexed herewith in Form No. 3CD.
A28: 3 | B28: The report of audit under section 44AB in Form No. 3CA (together with Statement of Particulars in Form No. 3CD) is required to be furnished electronically. However, in view of the constraints in the utility provided for furnished such report electronically, it is not feasible to prepare and furnish Form No. 3CD giving opinion as the auditor deems fit. Therefore, the Form No. 3CD has been given to the assessee in physical form and also electronically. As such, the Form No. 3CD in the electronic form should be read with the Form No. 3CD in physical form along with the note stated against the relevant clauses of Form 3CD.
A36: 4 | B36: In our opinion and to the best of our information and according to examination of books of account including other relevant documents and explantions given to us, the particulars given in the said Form No.3CD are true and correct.
E41: For XYZ and Assocites
E42: Chartered Accountants
E43: Firm Registration No :
E46: XYZ Kumar
B47: Place: | E47: Partner
B48: Date : | E48: Membership No. 00001

Sheet Form 3CD
A2: FORM NO. 3CD
A3: [See rule 6G(2)]
A4: Statement of particulars required to be furnished under section 44AB of the Income-tax act, 1961
A6: PART A
A8: 1 | B8: Name of the assessee : | C8: : | D8: XYZ Company Limited
A9: 2 | B9: Address | C9: : | D9: Address
A10: 3 | B10: Permanent Account Number : | C10: : | D10: AAAAA0000A
A11: 4 | B11: Whether the assessee is liable to pay indirect tax like excise duty, service tax, sales tax, Goods and Service Tax, customs duty,etc. if yes, please furnish the registration number, GST Number or any other identification number allotted for the same | C11: : | D11: As per Annexure - 1
A12: 5 | B12: Status | C12: : | D12: Company / Individual / Partnership Firm
A13: 6 | B13: Previous year ended | C13: : | D13: 31st March 2018
A14: 7 | B14: Assessment year : | C14: : | D14: 2018-19
A15: 8 | B15: Indicate the relevant clause of section 44AB under which the audit has been conducted | C15: : | D15: Clause (a) of Section 44AB
A18: PART B
A20: 9(a) | B20: If firm or Association of Persons, indicate names of partners/members and their profit sharing ratios. | C20: : | D20: Not applicale
A21: 9(b) | B21: If there is any change in the partners or members or in their profit sharing ratio since the last date of the preceding year, the particulars of such change | C21: : | D21: Not applicale
A22: 10(a) | B22: Nature of business or profession (if more than one business or profession is carried on during the previous year, nature of every business or profession). | C22: : | D22: As per Annexure 2
A23: 10(b) | B23: If there is any change in the nature of business or profession, the particulars of such change. | C23: : | D23: As per Annexure 2
A24: 11(a) | B24: Whether books of account are prescribed under section 44AA, if yes, list of books so prescribed. | C24: : | D24: As per Annexure 3
A25: 11(b) | B25: List of books of account maintained and the address at which books of accounts are kept. | C25: : | D25: As per Annexure 3
B26: (In case books of account are maintained in a computer system, mention the books of account generated by such computer system. If the books of accounts are not kept at one location, please furnish the addresses of locations along with the details of books of accounts maintained at each location.)
A27: 11(c) | B27: List of books of account and nature of relevant documents examined | C27: : | D27: As per Annexure 3
A28: 12 | B28: Whether the profit and loss account includes any profits and gains assessable on presumptive basis, if yes, indicate the amount and the relevant sections (44AD, 44ADA, 44AE, 44AF, 44B, 44BB, 44BBA, 44BBB, Chapter XII-G, First Schedule or any other relevant section.) | C28: : | D28: We have been informed that the Statement of profit and loss does not include any profit and gains assessable on presumptive basis.
A29: 13(a) | B29: Method of accounting employed in the previous year. | C29: : | D29: Mercantile System of accounting
A30: 13(b) | B30: Whether there had been any change in the method of accounting employed vis-a-vis the method employed in the immediately preceding previous year. | C30: : | D30: No
A31: 13(c) | B31: If answer to (b) above is in the affirmative, give details of such change, and the effect thereof on the profit or loss. | C31: : | D31: Not applicale
B32: - Serial Number
B33: - Particular
B34: - Increase in Profit (INR)
B35: - Decrease in Profit (INR)
A36: 13(d) | B36: Whether any adjustment is required to be made to the profits or loss for complying with the provisions of income computation and disclosure standards notified under section 145(2) | C36: : | D36: Yes/No
A37: 13(e) | B37: If answer to (d) above is in affirmative, give details of such adjustments: | C37: : | D37: As per Annexure 4
A38: 13(f) | B38: Disclosures as per ICDS | C38: : | D38: As per Annexure 5
B39: ICDS-I Accounting Policies
B40: ICDS-II Valuation of Inventories
B41: ICDS-III Construction Contracts
B42: ICDS-IV Revenue Recognition
B43: ICDS-V Tangible Fixed Assets
B44: ICDS-VII Government Grants
B45: ICDS-IX Borrowing Costs
B46: ICDS-X Provisions, Contingent Liabilities & Assets
A47: 14(a) | B47: Method of valuation of closing stock employed in the previous year | C47: : | D47: As per Annexure 6
A48: 14(b) | B48: Details of deviation, if any, from the method of valuation prescribed under section 145A, and the effect thereof on the profit or loss. | C48: : | D48: As per Annexure 6
A49: 15 | B49: Give the following particulars of the capital asset converted into stock-in-trade: - | C49: : | D49: During the year company has not covertered any capital into stock in Trade
B50: (a) Description of capital asset,
B51: (b) Date of acquisition
B52: (c) Cost of acquisition
B53: (d) Amount at which the asset is converted into stock-in-trade
A54: 16 | B54: Amounts not credited to the profit and loss account, being,— | C54: : | D54: As per Annexure 7
A55: 16(a) | B55: The items falling within the scope of section 28;
A56: 16(b) | B56: The proforma credits, drawbacks, refunds of duty of customs or excise or service tax, or refunds of sales tax or value added tax, where such credits, drawbacks or refunds are admitted as due by the authorities concerned
A57: 16(c) | B57: Escalation claims accepted during the previous year;
A58: 16(d) | B58: Any other item of income;
A59: 16(e) | B59: Capital receipt, if any.
A60: 17 | B60: Where any land or building or both is transferred during the previous year for a consideration less than value adopted or assessed or assessable by any authority of a State Government referred to in section 43CA or 50C, please furnish: | C60: : | D60: NIL
B61: - Details of Property
B62: - Consideration Received or accured
B63: - Value adopted or assessed or assessable
A64: 18 | B64: Particulars of depreciation allowable as per the Income-tax Act,1961 in respect of each asset or block of assets, as the case may be, in the following form :— | C64: : | D64: As per Annexure 8
A65: 18(a) | B65: Description of asset/block of assets.
A66: 18(b) | B66: Rate of depreciation.
A67: 18(c) | B67: Actual cost or written down value, as the case may be.
A68: 18(d) | B68: Additions/deductions during the year with dates; in the case of any addition of an asset, date put to use; including adjustments on account of—
A69: (i) | B69: Central Value Added Tax credit claimed and allowed under the Central Excise Rules, 1944, in respect of assets acquired on or after 1st March, 1994,
A70: (ii) | B70: change in rate of exchange of currency, and
A71: (iii) | B71: subsidy or grant or reimbursement, by whatever name called
A72: 18(e) | B72: Depreciation allowable.
A73: 18(f) | B73: Written down value at the end of the year.
A74: 19 | B74: Amounts admissible under sections :- | C74: : | D74: NIL
B75: 32AC, 32AD, 33AB, 33ABA, 35(1)(i), 35(1)(ii), 35(1)(iia), 35(1)(iii), 35(1)(iv), 35(2AA), 35(2AB), 35ABA, 35ABB, 35AC, 35AD, 35CCA, 35CCB, 35CCC, 35CCD, 35D, 35DD, 35DDA, 35E
B76: - Amount debited to profit and loss account
B77: - Amounts admissible as per the provisions of the Income Tax Act, 1961 and also fulfils the conditions, if any specified under the the conditions, if any specified under the relevant 14provisions of Income Tax Act, 1961 or Income Tax Rules,1962 or any other guidelines, circular, etc., issued in this behalf.
A78: 20(a) | B78: Any sum paid to an employee as bonus or commission for services rendered, where such sum was otherwise payable to him as profits or dividend. [Section 36(1)(ii)]. | C78: : | D78: Nil
A79: 20(b) | B79: Details of contributions received from employees for various funds as referred to in section 36(1)(va): | C79: : | D79: AS per Annexure 9
B80: - Serial No.
B81: - Nature of fund
B82: - Sum received from employees
B83: - Due date for payment
B84: - The actual amount paid
B85: - The actual date of payment to the concerned authorities
A86: 21(a) | B86: Please furnish the details of amounts debited to the profit and loss account, being in the nature of capital, personal, advertisement expenditure etc | C86: : | D86: As Per Annexure 10
A87: (i) | B87: Expenditure of capital nature;
A88: (ii) | B88: Expenditure of personal nature;
A89: (iii) | B89: Expenditure on advertisement in any souvenir, brochure,tract, pamphlet or the like, published by a political party;
A90: (iv) | B90: Expenditure incurred at clubs being entrance fees and subscriptions
A91: (v) | B91: Expenditure incurred at clubs being cost for club services and facilities used.
A92: (vi) | B92: Expenditure by way of penalty or fine for violation of any law for the time being force
A93: (vii) | B93: Expenditure by way of any other penalty or fine not covered above
A94: (viii) | B94: Expenditure incurred for any purpose which is an offence or which is prohibited by law
A95: 21(b) | B95: amounts inadmissible under section 40(a)
A96: (i) | B96: as payment to non-resident referred to in sub-clause (i)
A97: A. | B97: Details of payment on which tax is not deducted: | C97: : | D97: As per Annexure 11
B98: - Date of payment
B99: - Amount of payment
B100: - Nature of payment
B101: - Name of the payee
B102: - PAN of the payee, if available
B103: - Address of the payee
A105: B. | B105: Details of payment on which tax has been deducted but has not been paid during the previous year or in the subsequent year before the expiry of time prescribed under section 200(1) | C105: : | D105: As per Annexure 12
B106: - Date of payment
B107: - Amount of payment
B108: - Nature of payment
B109: - Name of the payee
B110: - PAN of the payee, if available
B111: - Address of the payee
B112: - Amount of tax deducted
A113: (ii) | B113: As payment referred to in sub-clause (ia)
A114: A. | B114: Details of payment on which tax is not deducted: | C114: : | D114: As Per Annexure 13
B115: - Date of payment
B116: - Amount of payment
B117: - Nature of payment
B118: - Name of the payee
B119: - PAN of the payee, if available
B120: - Address of the payee
A122: B. | B122: Details of payment on which tax has been deducted but has not been paid on or before the due date specified in sub- section (1) of section 139 | C122: : | D122: As Per Annexure 14
B123: - Date of payment
B124: - Amount of payment
B125: - Nature of payment
B126: - Name of the payee
B127: - PAN of the payee, if available
B128: - Address of the payee
B129: - Amount of tax deducted
B130: - amount out of above deposited, if any
A131: (iii) | B131: as payment referred to in sub-clause (ib)
A132: A. | B132: Details of payment on which levy is not deducted: | D132: As Per Annexure 15
B133: - Date of payment
B134: - Amount of payment
B135: - Nature of payment
B136: - Name of the payee
B137: - PAN of the payee, if available
B138: - Address of the payee
A140: B. | B140: Details of payment on which levy has been deducted but has not been paid on or before the due date specified in sub- section (1) of section139 | D140: As Per Annexure 16
B141: - Date of payment
B142: - Amount of payment
B143: - Nature of payment
B144: - Name of the payee
B145: - PAN of the payee, if available
B146: - Address of the payee
B147: - Amount of tax deducted
B148: - amount out of above deposited, if any
A149: (iv) | B149: Fringe benfit tax under sub-clause (ic) | C149: : | D149: NIL
A150: (v) | B150: Wealth tax under sub-clause (iia) | C150: : | D150: NIL
A151: (vi) | B151: Royalty, license fees, service fees etc. under sub-clause (iib) | C151: : | D151: NIL
A152: (vii) | B152: Salary payable outside india/ to a non- resident without TDS etc. under sub-clause (iii) | C152: : | D152: NIL
B153: - Date of Payment
B154: - Amount of Payment
B155: - Name and Address of the payee
A156: (viii) | B156: Payment to PF/ other fund etc. under sub-clause (iv) | C156: : | D156: NIL
A157: (ix) | B157: Tax paid by employer for perquisites under sub-clause (v) | C157: : | D157: NIL
A158: 21(c) | B158: Amounts debited to profit and loss account being, interest, salary, bonus, commission or remuneration inadmissible under section 40(b)/40(ba) and computation thereof; | C158: : | D158: Not Applicable
B159: - Nature
B160: - Section
B161: - Amount debited to P/L A/c
B162: - Amount admissible
B163: - Amount inadmissible
A164: 21(d) | B164: Disallowance/deemed income under section 40A(3):
A165: A. | B165: On the basis of the examination of books of account and other relevant documents/evidence, whether the expenditure covered under section 40A(3) read with rule 6DD were made by account payee cheque drawn on a bank or account payee bank draft. If not, please furnish the details: | D165: As per Annexure 17
B166: - Serial No
B167: - Date of payment
B168: - Nature of payment
B169: - Amount
B170: - Name and Permanent Account Number of the payee, if available
A171: B. | B171: On the basis of the examination of books of account and other relevant documents/evidence,whether the payment referred to in section 40A(3A) read with rule 6DD were made by account payee cheque drawn on a bank or account payee bank draft If not, please furnish the details of amount deemed to be the profits and gains of business or profession under section 40A(3A); | C171: : | D171: As per Annexure 17
B172: - Serial No
B173: - Date of payment
B174: - Nature of payment
B175: - Amount
B176: - Name and Permanent Account Number of the payee, if available
A177: 21(e) | B177: Provision for payment of gratuity not allowable under section 40A(7); | C177: : | D177: Provision for Gratuity disallowable INR________
A178: 21(f) | B178: Any sum paid by the assessee as an employer not allowable under section 40A(9); | C178: : | D178: NIL
A179: 21(g) | B179: Particulars of any liability of a contingent nature; | C179: : | D179: NIL
A180: 21(h) | B180: amount of deduction inadmissible in terms of section 14A in respect of the expenditure incurred in relation to income which does not form part of the total income; | C180: : | D180: As per Annexure 18
A181: 21(i) | B181: Amount inadmissible under the proviso to section 36(1)(iii). | C181: : | D181: NIL
A182: 22 | B182: Amount of interest inadmissible under section 23 of the Micro, Small and Medium Enterprises Development Act, 2006. | C182: : | D182: Nil
A183: 23 | B183: Particulars of payments made to persons specified under section 40A(2)(b). | C183: : | D183: As per Annexure 19
A184: 24 | B184: Amounts deemed to be profits and gains under section 32AC or 32AD or 33AB or 33ABA or 33AC. | C184: : | D184: NIL
A185: 25 | B185: Any amount of profit chargeable to tax under section 41 and computation thereof. | C185: : | D185: NIL
A186: 26 | B186: In respect of any sum referred to in clause (a), (b), (c), (d) (e) (f) or (g) of section 43B, the liability for which :— | C186: :
A187: A. | B187: Pre-existed on the first day of the previous year but was not allowed in the assessment of any preceding previous year and was | D187: As per Annexure 20
A188: a. | B188: Paid during the previous year;
A189: b. | B189: Not paid during the previous year.
A191: B. | B191: Was incurred in the previous year and was | D191: As Per Annexure 21
A192: a. | B192: Paid on or before the due date for furnishing the return of income of the previous year under section 139(1);
A193: b. | B193: Not paid on or before the aforesaid date.
B194: *State whether sales tax, customs duty, excise duty or any other indirect tax, levy, cess, impost, etc., is passed through the profit and loss account.
A195: 27(a) | B195: Amount of Central Value Added Tax credits availed of or utilized during the previous year and its treatment in the profit and loss account and treatment of outstanding Central Value Added Tax credits in the accounts. | C195: : | D195: As Per Annexure 22
A196: 27(b) | B196: Particulars of income or expenditure of prior period credited or debited to the profit and loss account. | C196: : | D196: As Per Annexure 23
A197: 28 | B197: Whether during the previous year the assessee has received any property, being share of a company not being a company in which the public are substantially interested, without consideration or for inadequate consideration as referred to in section 56(2)(viia), if yes, please furnish the details of the same. | C197: : | D197: No
B198: - Name of the person from which the shares received
B199: - PAN of the person, if available
B200: - Name of the Company whose shares are received
B201: - Name and Permanent Account Number of the payee, if available
B202: - CIN of the Compnay
B203: - No. of Shares Received
B204: - Amount of Consideration paid
B205: - Fair Market value of the Shares
A206: 29 | B206: Whether during the previous year the assessee received any consideration for issue of shares which exceeds the fair market value of the shares as referred to in section 56(2)(viib), if yes, please furnish the details of the same. | C206: : | D206: Not Applicable
B207: - Name of the person from whom consideration received for issue of shares
B208: - PAN of the person, if available
B209: - No. of Shares issued
B210: - Amount of Consideration received
... 184 more rows

Sheet 1
A1: XYZ COMPANY LIMITED | F1: www.taxhouseindia.com
A3: Annexure to Form 3CD For Assessment Year 2018-19
A5: Referred to Clause No 4 of Form No. 3CD | C5: Annexure-1
A7: Serial No | B7: Nature of Statute | C7: Registration No.
A8: 1
A9: =A8+1 -> 2
A10: 3

Sheet 2
A1: XYZ COMPANY LIMITED | H1: www.taxhouseindia.com
A3: Annexure to Form 3CD For Assessment Year 2018-19
A5: Referred to Clause No 10(a) and 10(b) of Form No. 3CD | E5: Annexure-2
A7: Serial No | B7: Nature of Profession or Business carried on during the previous year | C7: Sector | D7: Sub Sector | E7: Code
A8: 1
A9: =A8+1 -> 2
A10: 3

Sheet 3
A1: XYZ COMPANY LIMITED
A3: Annexure to Form 3CD For Assessment Year 2018-19
A5: Refer Clause No. 11(a),11(b) & 11(c) of Form No. 3CD | D5: Annexure-3
A7: Clause 11(a)
A8: The following books of account have been prescribed under section 44AA read with rule 6F
A9: 1 | B9: Cash Book
A10: 2 | B10: Ledger Accounts
A11: 3 | B11: Bank Book
A12: 4 | B12: Journal
A14: Clause 11(a)& 11(c) of Form No. 3CD
A16: Details of Books of Accounts maintained and examined
A17: S.No. | B17: Books of Accounts Maintained | C17: Generated on Computer System | D17: Books of Accounts Examined
A18: 1 | B18: Cash Book | C18: Yes | D18: Yes
A19: =+A18+1 -> 2 | B19: Bank Book | C19: Yes | D19: Yes
A20: =+A19+1 -> 3 | B20: General Ledger | C20: Yes | D20: Yes
A21: 4 | B21: Journal Book | C21: Yes | D21: Yes
A22: 5 | B22: Fixed Assets Register | C22: Yes | D22: Yes
A23: 6 | B23: Stock Register | C23: Yes | D23: Yes
A24: 7 | B24: Purchase And Sales Register | C24: Yes | D24: Yes
A26: Address at which the books of account are kept
A27: S.No. | B27: Address
A28: 1
A29: =+A28+1 -> 2
A30: 3

Sheet 4
A1: XYZ COMPANY LIMITED | G1: www.taxhouseindia.com
A3: Annexure to Form 3CD For Assessment Year 2018-19
A5: Refer Clause No. 13(e) of Form No. 3CD | D5: Annexure-4
A7: Particular | B7: Increase in Profit (INR) | C7: Decrease in Profit (INR) | D7: Net Effect (INR)
A8: ICDS-I Accounting Policies | B8: 0 | C8: 0 | D8: =+B8-C8 -> 0
A9: ICDS-II valuation of Inventories | B9: 0 | C9: 0 | D9: =+B9-C9 -> 0
A10: ICDS-III Construction Contracts | B10: 0 | C10: 0 | D10: 0
A11: ICDS-IV Revenue Recognition | B11: 0 | C11: 0 | D11: 0
A12: ICDS-V Tangible Fixed Assets | B12: 0 | C12: 0 | D12: 0
A13: ICDS-VI Changes in Foreign Exchange Rates | B13: 0 | C13: 0 | D13: 0
A14: ICDS-VII Government Grants | B14: 0 | C14: 0 | D14: 0
A15: ICDS-VIII Securities | B15: 0 | C15: 0 | D15: 0
A16: ICDS-IX Borrowing Costs | B16: 0 | C16: 0 | D16: 0
A17: ICDS-X Provisions, Contingent Liabilities & | B17: 0 | C17: 0 | D17: 0
A18: Contingent Assets | B18: 0 | C18: 0 | D18: 0
A19: Total | B19: =SUM(B8:B18) -> 0 | C19: =SUM(C8:C18) -> 0 | D19: =SUM(D8:D18) -> 0

Sheet 5
A1: XYZ COMPANY LIMITED | G1: www.taxhouseindia.com
A3: Annexure to Form 3CD For Assessment Year 2018-19
A5: Refer Clause No. 13(f) of Form No. 3CD | C5: Annexure-5
A7: Details of Disclosures as per ICDS
A9: Particular of ICDS | B9: Nature | C9: Disclosure
A10: ICDS - I | B10: Accounting Policies | C10: For ICDS Disclosure requirement please check below
A11: ICDS - II | B11: Inventories | C11: For ICDS Disclosure requirement please check below
A12: ICDS - III | B12: Construction Contracts | C12: For ICDS Disclosure requirement please check below
A13: ICDS - IV | B13: Revenue Recognition | C13: For ICDS Disclosure requirement please check below
A14: ICDS - V | B14: Tangible Fixed Assets | C14: For ICDS Disclosure requirement please check below
A15: ICDS - VII | B15: Govt Grants | C15: For ICDS Disclosure requirement please check below
A16: ICDS - IX | B16: Borrowing Costs | C16: For ICDS Disclosure requirement please check below
A17: ICDS - X | B17: Provisions, Contingent Liabilities and Contingent Assets | C17: For ICDS Disclosure requirement please check below
A20: ICDS-I Accounting Policies
A21: 1 | B21: All significant accounting policies adopted shall be disclosed.
A22: 2 | B22: Any change in an accounting policy which has a material effect shall be disclosed. The amount by which any item is affected by such change shall also be disclosed to the extent ascertainable. Where such amount is not ascertainable, wholly or in part, the fact shall be indicated. If a change is made in the accounting policies which has no material effect for the current previous year but which is reasonably expected to have a material effect in later previous years, the fact of such change shall be appropriately disclosed in the previous year in which the change is adopted and also in the previous year in which such change has material effect for the first time.
A23: 3 | B23: Disclosure of accounting policies or of changes therein cannot remedy a wrong or inappropriate treatment of the item.
A24: 4 | B24: If the fundamental accounting assumptions of Going Concern, Consistency and Accrual are followed, specific disclosure is not required. If a fundamental accounting assumption is not followed, the fact shall be disclosed.
A26: ICDS-II Inventories
A27: 1 | B27: The accounting policies adopted in measuring inventories including the cost formulae used. Where Standard Costing has been used as a measurement of cost, details of such inventories and a confirmation of the fact that standard cost approximates the actual cost; and
A28: 2 | B28: The total carrying amount of inventories and its classification appropriate to a person.
A30: ICDS-III Construction Contracts
A31: 1 | B31: The amount of contract revenue recognised as revenue in the period
A32: 2 | B32: The methods used to determine the stage of completion of contracts in progress
A33: 3 | B33: For Contracts in progress- disclosure pertaining to
A34: a | B34: Amount of costs incurred and recognised profits (less recognised losses) upto the reporting date
A35: b | B35: The amount of advances received
A36: c | B36: The amount of retentions
A38: ICDS-IV Revenue Recognition
A39: 1 | B39: For transactions involving sale of good, total amount not recognised as revenue during the previous year due to lack of reasonably certainty of its ultimate collection along with nature of uncertainty
A40: 2 | B40: The amount of revenue from service transactions recognised as revenue during the previous year
A41: 3 | B41: The method used to determine the stage of completion of service transactions in progress
A42: 4 | B42: For service transactions in progress at the end of the financial year
A43: a | B43: Amount of costs incurred and recognised profits (less recognised losses) upto end of previous year
A44: b | B44: The amount of advances received
A45: c | B45: The amount of retentions
A47: ICDS-V Tangible Fixed Assets
A48: 1 | B48: Description of asset or block of assets
A49: 2 | B49: Rate of depreciation
A50: 3 | B50: Actual cost or written down value, as the case may be
A51: 4 | B51: Deductions during the year with dates;
A52: 5 | B52: In the case of any addition of an asset, date put to use; including adjustments on account of
A53: a | B53: Central Value Added Tax credit claimed and allowed under the CENVAT Credit Rules, 2004
A54: b | B54: Change in rate of exchange of currency
A55: c | B55: Subsidy or grant or reimbursement, by whatever name called
A56: 6 | B56: Depreciation Allowable
A57: 7 | B57: Written down value at the end of year
A59: ICDS-VII Govt Grants
A60: 1 | B60: Nature and extent of Government grants recognised during the previous year by way of deduction from the actual cost of the asset or assets or from the written down value of block of assets during the previous year
A61: 2 | B61: Nature and extent of Government grants recognised during the previous year as income
A62: 3 | B62: Nature and extent of Government grants not recognised during the previous year by way of deduction from the actual cost of the asset or assets or from the written down value of block of assets and reasons thereof
A63: 4 | B63: Nature and extent of Government grants not recognised during the previous year as income and reasons thereof
A65: ICDS-IX Borrowing Costs
A66: 1 | B66: The Accounting Policy adopted for borrowing costs
A67: 2 | B67: The amount of borrowing costs capitalised during the precious year
A69: ICDS-X Provisions, Contingent Liabilities and Contingent Assets
A70: 1 | B70: Disclosure shall be made in respect of each class of provision
A71: a | B71: A brief description of the nature of the obligation
A72: b | B72: The carrying amount at the beginning and end of the previous year
A73: c | B73: Additional provisions made during the previous year, including increases to existing provisions
A74: d | B74: Amounts used, that is incurred and charged against the provision, during the previous year
A75: e | B75: Unused amounts reversed during the previous year
A76: f | B76: The amount of any expected reimbursement, stating the amount of any asset that has been recognised for that expected reimbursement
A77: 2 | B77: Disclosure shall be made in respect of each class of asset and related income recognised as provided in para 11
A78: a | B78: A brief description of the nature of the asset and related income
A79: b | B79: The carrying amount of asset at the beginning and end of the previous year
A80: c | B80: Additional amount of asset and related income recognised during the year, including increases to assets and related income already recognised
A81: d | B81: Amount of asset and related income reversed during the previous year.

Sheet 6
A1: XYZ COMPANY LIMITED | F1: www.taxhouseindia.com
A3: Annexure to Form 3CD For Assessment Year 2018-19
A5: Refer Clause No. 14(a) & 14(b) of Form No. 3CD | D5: Annexure-6
A7: Clause no 14(a)
A8: Method of Valuation of Closing Stock employed in previous year
A9: S,No | B9: Particular of Closing Stock | C9: Method of Valuation employed in pervious year
A10: 1
A11: 2
A13: Clause no 14(b)
A14: Details of deviation if any from the method of valuation prescribed u/s 145A and the effect thereof on the Statement of Profit & Loss for the Financial Year 2017-2018
A17: S.No | B17: Deviation in Method of Valuation | C17: Impact of such Change on Profit
C18: Increase in Profit | D18: Decrease in Profit
A19: 1 | B19: Tax (GST/Service Tax/Vat) Collected on Sale / Services
A20: 2 | B20: Tax (GST/Service Tax/Vat) Paid to Government
A21: 3 | B21: Tax (GST/Service Tax/Vat) Input Utilised

Sheet 7
A1: XYZ COMPANY LIMITED | E1: www.taxhouseindia.com
A3: Annexure to Form 3CD For Assessment Year 2018-19
A5: Refer Clause No. 16 of Form No. 3CD | C5: Annexure-7
A7: Clause no 16
A9: Amounts not credited to the profit and loss account, being,—
A10: S,No | B10: Particular | C10: Amount
A11: 1 | B11: The items falling within the scope of section 28;
A12: 2 | B12: The proforma credits, drawbacks, refunds of duty of customs or excise or service tax, or refunds of sales tax or value added tax, where such credits, drawbacks or refunds are admitted as due by the authorities concerned
A13: 3 | B13: Escalation claims accepted during the previous year;
A14: 4 | B14: Any other item of income;
A15: 5 | B15: Capital receipt, if any.

Sheet 8
A1: XYZ COMPANY LIMITED
A3: Annexure to Form 3CD For Assessment Year 2018-19
A5: Refer Clause No. 18 of Form No. 3CD | L5: Annexure-8
A7: Particulars of depreciation allowable as per the Income Tax Act, 1961 in respect of each Asset or Block of Asset
A9: Description of Assets/ Block of Assets | B9: Rate of Depreciation | C9: W.D.V. as on 01-04-2017 | D9: Deduction / Sale during the year | E9: Additions during the Year | G9: Adjustment in Additions | J9: Total as on 31-03-2018 | K9: Depreciation for the year | L9: W.D.V as on 31-03-2018
E10: Put to use for 180 days or More | F10: Put ot use for less than 180 days | G10: Cenvat | H10: Change in rate of Exchange | I10: Subsidy or Grant
A11: Block -I @10%
A12: Furniture & Fixtures | B12: 0.1 | C12: 0 | D12: 0 | E12: =+'8.1'!G9 -> 500 | F12: =+'8.1'!H9 -> 100 | G12: 0 | H12: 0 | I12: 0 | J12: =+C12-D12+E12+F12-G12-H12-I12 -> 600 | K12: =+ROUND((J12*B12)-(F12*B12/2),0) -> 55 | L12: =+J12-K12 -> 545
A14: Block -II @15%
A15: Plant & Machinery | B15: 0.15 | C15: 0 | D15: 0 | E15: =+'8.1'!G15 -> 700 | F15: =+'8.1'!H15 -> 800 | G15: 0 | H15: 0 | I15: 0 | J15: =+C15-D15+E15+F15-G15-H15-I15 -> 1500 | K15: =+ROUND((J15*B15)-(F15*B15/2),0) -> 165 | L15: =+J15-K15 -> 1335
A17: Block -III @40%
A18: Computers and Software | B18: 0.4 | C18: 0 | D18: 0 | E18: =+'8.1'!G21 -> 2500 | F18: =+'8.1'!H21 -> 0 | G18: 0 | H18: 0 | I18: 0 | J18: =+C18-D18+E18+F18-G18-H18-I18 -> 2500 | K18: =+ROUND((J18*B18)-(F18*B18/2),0) -> 1000 | L18: =+J18-K18 -> 1500
A20: Block -IV @15%
A21: Vehicles | B21: 0.15 | C21: 0 | E21: =+'8.1'!G26 -> 20000 | F21: =+'8.1'!H26 -> 0 | G21: 0 | H21: 0 | I21: 0 | J21: =+C21-D21+E21+F21-G21-H21-I21 -> 20000 | K21: =+ROUND((J21*B21)-(F21*B21/2),0) -> 3000 | L21: =+J21-K21 -> 17000
A23: Block -V @50%
A24: Vehicles | B24: 0.5 | C24: 0 | D24: 0 | E24: =+'8.1'!G31 -> 0 | F24: =+'8.1'!H31 -> 45000 | G24: 0 | H24: 0 | I24: 0 | J24: =+C24-D24+E24+F24-G24-H24-I24 -> 45000 | K24: =+ROUND((J24*B24)-(F24*B24/2),0) -> 11250 | L24: =+J24-K24 -> 33750
A26: Block -VI @10%
A27: Building | B27: 0.1 | C27: 0 | D27: 0 | E27: 0 | F27: 0 | G27: 0 | H27: 0 | I27: 0 | J27: =+C27-D27+E27+F27-G27-H27-I27 -> 0 | K27: =+ROUND((J27*B27)-(F27*B27/2),0) -> 0 | L27: =+J27-K27 -> 0
A29: Block -VIII @80%
A30: Plant & Machinery | B30: 0.4 | C30: 0 | D30: 0 | E30: 0 | F30: 0 | G30: 0 | H30: 0 | I30: 0 | J30: =+C30-D30+E30+F30-G30-H30-I30 -> 0 | K30: =+ROUND((J30*B30)-(F30*B30/2),0) -> 0 | L30: =+J30-K30 -> 0
A32: Block -IX @100%
A33: Office (Temporary Erection) | B33: 1 | C33: 0 | D33: 0 | E33: 0 | F33: 0 | G33: 0 | H33: 0 | I33: 0 | J33: =+C33-D33+E33+F33-G33-H33-I33 -> 0 | K33: =+ROUND((J33*B33)-(F33*B33/2),0) -> 0 | L33: =+J33-K33 -> 0
B34: Total | C34: =SUM(C12:C33) -> 0 | D34: 0 | E34: 23700 | F34: 45900 | G34: 0 | H34: 0 | I34: 0 | J34: 69600 | K34: 15470 | L34: 54130

Sheet 8.1
A1: ='8'!A1 -> XYZ COMPANY LIMITED | N1: www.taxhoseindia.om
A3: Particulars of additions & date of put to use in respect of each asset or block of assets.
A5: Block - I (Furniture & Fixture)
A6: Sr No | B6: Name of Item | C6: Date of put to use | D6: Year end date | E6: No of Days used | F6: Value of Asstes | G6: Put to use for 180 days or More | H6: Put ot use for less than 180 days | I6: Total
A7: 1 | B7: Furniture - 1 | C7: 2017-04-10 | D7: 2018-03-31 | E7: =+D7-C7+1 -> 356 | F7: 500 | G7: =+F7-H7 -> 500 | H7: =IF(E7<180,F7,0) -> 0 | I7: =G7+H7 -> 500
A8: =+A7+1 -> 2 | B8: Furniture - 2 | C8: 2017-12-12 | D8: 2018-03-31 | E8: =+D8-C8+1 -> 110 | F8: 100 | G8: =+F8-H8 -> 0 | H8: =IF(E8<180,F8,0) -> 100 | I8: =G8+H8 -> 100
B9: Total | G9: =SUM(G7:G8) -> 500 | H9: =SUM(H7:H8) -> 100 | I9: =SUM(I7:I8) -> 600
A11: Block - II (Plant and Machinery)
A12: Sr No | B12: Name of Item | C12: Date of put to use | D12: Year end date | E12: No of Days used | F12: Value of Asstes | G12: Put to use for 180 days or More | H12: Put ot use for less than 180 days | I12: Total
A13: 1 | B13: Machinery - 1 | C13: 2017-07-15 | D13: 2018-03-31 | E13: =+D13-C13+1 -> 260 | F13: 700 | G13: =+F13-H13 -> 700 | H13: =IF(E13<180,F13,0) -> 0 | I13: =G13+H13 -> 700
A14: =+A13+1 -> 2 | B14: Machinery - 2 | C14: 2018-02-28 | D14: 2018-03-31 | E14: =+D14-C14+1 -> 32 | F14: 800 | G14: =+F14-H14 -> 0 | H14: =IF(E14<180,F14,0) -> 800 | I14: =G14+H14 -> 800
B15: Total | G15: =SUM(G13:G14) -> 700 | H15: =SUM(H13:H14) -> 800 | I15: =SUM(I13:I14) -> 1500
A17: Block - III (Computer and Software)
A18: Sr No | B18: Name of Item | C18: Date of put to use | D18: Year end date | E18: No of Days used | F18: Value of Asstes | G18: Put to use for 180 days or More | H18: Put ot use for less than 180 days | I18: Total
A19: 1 | B19: Laptop | C19: 2017-07-18 | D19: 2018-03-31 | E19: =+D19-C19+1 -> 257 | F19: 1500 | G19: =+F19-H19 -> 1500 | H19: =IF(E19<180,F19,0) -> 0 | I19: =G19+H19 -> 1500
A20: =+A19+1 -> 2 | B20: Server | C20: 2017-05-25 | D20: 2018-03-31 | E20: =+D20-C20+1 -> 311 | F20: 1000 | G20: =+F20-H20 -> 1000 | H20: =IF(E20<180,F20,0) -> 0 | I20: =G20+H20 -> 1000
B21: Total | G21: =SUM(G19:G20) -> 2500 | H21: =SUM(H19:H20) -> 0 | I21: =SUM(I19:I20) -> 2500
A23: Block - IV (Vehicle 15%)
A24: Sr No | B24: Name of Item | C24: Date of put to use | D24: Year end date | E24: No of Days used | F24: Value of Asstes | G24: Put to use for 180 days or More | H24: Put ot use for less than 180 days | I24: Total
A25: 1 | B25: Vehicle | C25: 2017-08-27 | D25: 2018-03-31 | E25: =+D25-C25+1 -> 217 | F25: 20000 | G25: =+F25-H25 -> 20000 | H25: =IF(E25<180,F25,0) -> 0 | I25: =G25+H25 -> 20000
B26: Total | G26: =SUM(G25:G25) -> 20000 | H26: =SUM(H25:H25) -> 0 | I26: =SUM(I25:I25) -> 20000
A28: Block - V (Vehicle 60%)
A29: Sr No | B29: Name of Item | C29: Date of put to use | D29: Year end date | E29: No of Days used | F29: Value of Asstes | G29: Put to use for 180 days or More | H29: Put ot use for less than 180 days | I29: Total
A30: 1 | B30: Vehicle | C30: 2018-03-15 | D30: 2018-03-31 | E30: =+D30-C30+1 -> 17 | F30: 45000 | G30: =+F30-H30 -> 0 | H30: =IF(E30<180,F30,0) -> 45000 | I30: =G30+H30 -> 45000
B31: Total | G31: =SUM(G30:G30) -> 0 | H31: =SUM(H30:H30) -> 45000 | I31: =SUM(I30:I30) -> 45000

Sheet 9
A1: XYZ COMPANY LIMITED | H1: www.taxhouseindia.com
A3: Annexure to Form 3CD For Assessment Year 2018-19 | E3: Annexure-9
A5: Refer Clause No. 20(b) of Form No. 3CD
A7: Details of contributions received from employees for various funds as referred to in section 36(1)(va):
A9: Particular of any sum received from employees towards Provident Fund
A10: Month | B10: Sum received from employees | C10: Due date for payment | D10: The actual amount paid | E10: The actual date of Deposit
A11: 2017-04-01 | C11: 2017-05-15
A12: 2017-05-01 | C12: 2017-06-15
A13: 2017-06-01 | C13: 2017-07-15
A14: 2017-07-01 | C14: 2017-08-15
A15: 2017-08-01 | C15: 2017-09-15
A16: 2017-09-01 | C16: 2017-10-15
A17: 2017-10-01 | C17: 2017-11-15
A18: 2017-11-01 | C18: 2017-12-15
A19: 2017-12-01 | C19: 2018-01-15
A20: 2018-01-01 | C20: 2018-02-15
A21: 2018-02-01 | C21: 2018-03-15
A22: 2018-03-01 | C22: 2018-04-15
A23: Total | B23: =SUM(B11:B22) -> 0 | D23: =SUM(D11:D22) -> 0
A25: Particular of any sum received from employees towards ESI
A26: Month | B26: Sum received from employees | C26: Due date for payment | D26: The actual amount paid | E26: The actual date of Deposit
A27: 2017-04-01 | B27: 0 | C27: 2017-05-15 | D27: 0
A28: 2017-05-01 | B28: 0 | C28: 2017-06-15 | D28: 0
A29: 2017-06-01 | B29: 0 | C29: 2017-07-15 | D29: 0
A30: 2017-07-01 | B30: 0 | C30: 2017-08-15 | D30: 0
A31: 2017-08-01 | B31: 0 | C31: 2017-09-15 | D31: 0
A32: 2017-09-01 | B32: 0 | C32: 2017-10-15 | D32: 0
A33: 2017-10-01 | B33: 0 | C33: 2017-11-15 | D33: 0
A34: 2017-11-01 | B34: 0 | C34: 2017-12-15 | D34: 0
A35: 2017-12-01 | B35: 0 | C35: 2018-01-15 | D35: 0
A36: 2018-01-01 | B36: 0 | C36: 2018-02-15 | D36: 0
A37: 2018-02-01 | B37: 0 | C37: 2018-03-15 | D37: 0
A38: 2018-03-01 | B38: 0 | C38: 2018-04-15 | D38: 0
A39: Total | B39: =SUM(B27:B38) -> 0 | D39: =SUM(D27:D38) -> 0

Sheet 10
A1: XYZ COMPANY LIMITED | G1: www.taxhouseindia.com
A3: Annexure to Form 3CD For Assessment Year 2018-19 | D3: Annexure-10
A5: Refer Clause No. 21(b)(i)(A) of Form No. 3CD
A7: Details of amounts debited to the profit and loss account, being in the nature of capital,
A8: personal, advertisement expenditure etc
A10: Nature | B10: S.No | C10: Particular | D10: Amount
A11: Expenditure of capital nature; | B11: 1 | C11: Stampt Duty on Issue of Share | D11: 0
B12: 2
A13: Expenditure of personal nature;
A14: Expenditure on advertisement in any souvenir, brochure,tract, pamphlet or the like, published by a political party;
A15: Expenditure incurred at clubs being entrance fees and subscriptions
A16: Expenditure incurred at clubs being cost for club services and facilities used.
A17: Expenditure by way of penalty or fine for violation of any law for the time being force
A18: Expenditure by way of any other penalty or fine not covered above
A19: Expenditure incurred for any purpose which is an offence or which is prohibited by law

Sheet 11
A1: XYZ COMPANY LIMITED | J1: www.taxhouseindia.com
A3: Annexure to Form 3CD For Assessment Year 2018-19 | G3: Annexure-11
A5: Refer Clause No. 21b(i)(A) of Form No. 3CD
A7: Details of payment to Non Resident referred to in 40(a)(i) on which tax is not deducted
A9: S.No. | B9: Date of payment | C9: Amount of payment | D9: Nature of payment | E9: Name of the payee | F9: PAN of the payee, if available | G9: Address of the payee
A10: 1
A11: =A10+1 -> 2
A12: =A11+1 -> 3
A13: 4
A14: 5
A15: 6
A16: 7
B17: Total | C17: =SUM(C10:C16) -> 0

Sheet 12
A1: XYZ COMPANY LIMITED | K1: www.taxhouseindia.com
A3: Annexure to Form 3CD For Assessment Year 2018-19 | H3: Annexure-12
A5: Refer Clause No. 21b(i)(B) of Form No. 3CD
A7: Details of payment to Non Resident referred to in 40(a)(i) on which tax has been deducted but has not been paid
A8: during the previous year or in the subsequent year before the expiry of time prescribed under section 200(1)
A10: S.No. | B10: Date of payment | C10: Amount of payment | D10: Nature of payment | E10: Name of the payee | F10: PAN of the payee, if available | G10: Address of the payee | H10: Amount of tax deducted
A11: 1
A12: =A11+1 -> 2
A13: =A12+1 -> 3
A14: 4
A15: 5
A16: 6
A17: 7
B18: Total | C18: =SUM(C11:C17) -> 0 | H18: =SUM(H11:H17) -> 0

Sheet 13
A1: XYZ COMPANY LIMITED | J1: www.taxhouseindia.com
A3: Annexure to Form 3CD For Assessment Year 2018-19 | G3: Annexure-13
A5: Refer Clause No. 21b(ii)(A) of Form No. 3CD
A7: Details of payment referred to in 40(a)(ia) on which tax is not deducted
A9: S.No. | B9: Date of payment | C9: Amount of payment | D9: Nature of payment | E9: Name of the payee | F9: PAN of the payee, if available | G9: Address of the payee
A10: 1
A11: =A10+1 -> 2
A12: =A11+1 -> 3
A13: 4
A14: 5
A15: 6
A16: 7
B17: Total | C17: =SUM(C10:C16) -> 0

Sheet 14
A1: XYZ COMPANY LIMITED | L1: www.taxhouseindia.com
A3: Annexure to Form 3CD For Assessment Year 2018-19 | I3: Annexure-14
A5: Refer Clause No. 21b(ii)(B) of Form No. 3CD
A7: Details of payment on which tax has been deducted referred to in 40(a)(ia) but has not been paid on or before the
A8: due date specified in sub- section (1) of section 139
A10: S.No. | B10: Date of payment | C10: Amount of payment | D10: Nature of payment | E10: Name of the payee | F10: PAN of the payee, if available | G10: Address of the payee | H10: Amount of tax deducted | I10: Amount out of above deposited, if any
A11: 1
A12: =A11+1 -> 2
A13: =A12+1 -> 3
A14: 4
A15: 5
A16: 6
A17: 7
B18: Total | C18: =SUM(C11:C17) -> 0 | H18: =SUM(H11:H17) -> 0 | I18: =SUM(I11:I17) -> 0

Sheet 15
A1: XYZ COMPANY LIMITED | J1: www.taxhouseindia.com
A3: Annexure to Form 3CD For Assessment Year 2018-19 | G3: Annexure-15
A5: Refer Clause No. 21b(iii)(A) of Form No. 3CD
A7: Details of payment referred to in 40(a)(ib) on which tax is not deducted
A9: S.No. | B9: Date of payment | C9: Amount of payment | D9: Nature of payment | E9: Name of the payee | F9: PAN of the payee, if available | G9: Address of the payee
A10: 1
A11: =A10+1 -> 2
A12: =A11+1 -> 3
A13: 4
A14: 5
A15: 6
A16: 7
B17: Total | C17: =SUM(C10:C16) -> 0

Sheet 16
A1: XYZ COMPANY LIMITED | L1: www.taxhouseindia.com
A3: Annexure to Form 3CD For Assessment Year 2018-19 | I3: Annexure-16
A5: Refer Clause No. 21b(iii)(B) of Form No. 3CD
A7: Details of payment on which tax has been deducted referred to in 40(a)(ib) but has not been paid on or before the
A8: due date specified in sub- section (1) of section 139
A10: S.No. | B10: Date of payment | C10: Amount of payment | D10: Nature of payment | E10: Name of the payee | F10: PAN of the payee, if available | G10: Address of the payee | H10: Amount of tax deducted | I10: Amount out of above deposited, if any
A11: 1
A12: =A11+1 -> 2
A13: =A12+1 -> 3
A14: 4
A15: 5
A16: 6
A17: 7
B18: Total | C18: =SUM(C11:C17) -> 0 | H18: =SUM(H11:H17) -> 0 | I18: =SUM(I11:I17) -> 0

Sheet 17
A1: XYZ COMPANY LIMITED | J1: www.taxhouseindia.com
A3: Annexure to Form 3CD For Assessment Year 2018-19 | G3: Annexure-17
A5: Refer Clause No. 21d of Form No. 3CD
A7: Amount Inadmissible under Section 40A(3):
A9: A. | B9: Expenditure covered under section 40A(3) read with rule 6DD for which payment has been made
B10: otherwise account payee cheque drawn on a bank or account payee bank draft.
B12: S.No | C12: Date of payment | D12: Nature of payment | E12: Amount | F12: Name | G12: PAN of the payee, if available
B14: See Below Note
A17: B. | B17: Expenditure covered under section 40A(3) read with rule 6DD for which payment has been made
B18: by otherwise account payee cheque drawn on a bank or account payee bank draft which are deemed
B19: to be the profit and gain of Business or profession under Section 40A(3A)
B21: S.No | C21: Date of payment | D21: Nature of payment | E21: Amount | F21: Name | G21: PAN of the payee, if available
B23: See Below Note
A26: Note : It has not been possible to verify whether all the payments in excess of Rs.10,000/- have been made otherwise than by account payee cheque /drafts as the necessary evidence is not in the possession of the assessee.

Sheet 18
A1: XYZ COMPANY LIMITED | E1: www.taxhouseindia.com
A3: Annexure to Form 3CD For Assessment Year 2018-19 | B3: Annexure-18
A5: Refer Clause No. 21h of Form No. 3CD
A7: Calculation of amount disallowed U/S 14A as per Rule 8D
A9: Particulars | B9: Amount in INR.
A10: Annual Average of Monthly Investment | B10: 0
A11: Disallowance under rule 8D (1% of above) | B11: =B10*1% -> 0

Sheet 19
A1: XYZ COMPANY LIMITED
A3: Annexure to Form 3CD For Assessment Year 2018-19 | F3: Annexure-19
A5: Refer Clause No. 23 of Form No. 3CD
A7: Particulars of payments made to the persons specified under section 40A(2)(b) of the Income Tax Act, 1961
A9: S.No. | B9: Name of the person | C9: Relationship | D9: Pan no of Related Person | E9: Nature of payment | F9: Amounts
A10: 1
A11: =A10+1 -> 2
A12: =A11+1 -> 3
A13: =A12+1 -> 4
B14: Total | F14: =SUM(F10:F13) -> 0
A16: Note: The list of persons specified in section 40A(2)(b) is taken as certified by the management

Sheet 20
A1: XYZ COMPANY LIMITED | F1: www.taxhouseindia.com
A3: Annexure to Form 3CD For Assessment Year 2018-19 | C3: Annexure-20
A5: Refer Clause No. 26A of Form No. 3CD
A7: Liabilities covered in sec 43B pre-existing on first day of the previous year but not
A8: allowed as a deduction in any preceding previous year
A10: (a) Paid during the previous year
A12: Section | B12: Nature of Liability | C12: Amount
A13: 43B(a) | B13: Payment of Taxes | C13: 0
A14: 43B(b) | B14: Employer Contribution for benefit of Employee | C14: 0
A15: 43B(c) | B15: Bonus / Commission | C15: 0
A16: 43B(d) | B16: Interest from public financial institution etc | C16: 0
A17: 43B(e) | B17: Interest on Loan from schedule bank | C17: 0
A18: 43B(f) | B18: Leave encashment | C18: 0
A19: 43B(g) | B19: Payment made to Railways | C19: 0
A21: (b) Not paid during the previous year
A23: Section | B23: Nature of Liability | C23: Amount
A24: 43B(a) | B24: Payment of Taxes | C24: 0
A25: 43B(b) | B25: Employer Contribution for benefit of Employee | C25: 0
A26: 43B(c) | B26: Bonus / Commission | C26: 0
A27: 43B(d) | B27: Interest from public financial institution etc | C27: 0
A28: 43B(e) | B28: Interest on Loan from schedule bank | C28: 0
A29: 43B(f) | B29: Leave encashment | C29: 0
A30: 43B(g) | B30: Payment made to Railways | C30: 0

Sheet 21
A1: XYZ COMPANY LIMITED | F1: www.taxhouseindia.com
A3: Annexure to Form 3CD For Assessment Year 2018-19 | C3: Annexure-21
A5: Refer Clause No. 26B of Form No. 3CD
A7: Liabilities covered in sec 43B incurred during the previous year
A9: (a) Paid on or before the due date for furnishing the return of income of the
A10: previous year under section 139(1);
A12: Section | B12: Nature of Liability | C12: Amount
A13: 43B(a) | B13: Payment of Taxes | C13: 0
A14: 43B(b) | B14: Employer Contribution for benefit of Employee | C14: 0
A15: 43B(c) | B15: Bonus / Commission | C15: 0
A16: 43B(d) | B16: Interest from public financial institution etc | C16: 0
A17: 43B(e) | B17: Interest on Loan from schedule bank | C17: 0
A18: 43B(f) | B18: Leave encashment | C18: 0
A19: 43B(g) | B19: Payment made to Railways | C19: 0
A21: (b) Not paid on or before the aforesaid date
A23: Section | B23: Nature of Liability | C23: Amount
A24: 43B(a) | B24: Payment of Taxes | C24: 0
A25: 43B(b) | B25: Employer Contribution for benefit of Employee | C25: 0
A26: 43B(c) | B26: Bonus / Commission | C26: 0
A27: 43B(d) | B27: Interest from public financial institution etc | C27: 0
A28: 43B(e) | B28: Interest on Loan from schedule bank | C28: 0
A29: 43B(f) | B29: Leave encashment | C29: 0
A30: 43B(g) | B30: Payment made to Railways | C30: 0

Sheet 22
A1: XYZ COMPANY LIMITED | G1: www.taxhouseindia.com
A3: Annexure to Form 3CD For Assessment Year 2018-19 | D3: Annexure-22
A5: Refer Clause No. 27(a) of Form No. 3CD
A7: Central Value Added Tax credits availed of or utilized during the previous year
A9: Particular | B9: Capital Goods | C9: Others | D9: Treatment in Profit and Loss account
A10: Opening Balance of Cenvat Credit | B10: 0 | C10: 0 | D10: No Effect
A11: Add : Cenvat Availed | B11: 0 | C11: 0 | D11: No Effect
A12: Less : Cenvat Utilised | B12: 0 | C12: 0 | D12: No Effect
A13: Closing Balance of Cenvat Credit | B13: 0 | C13: 0 | D13: No Effect

Sheet 23
A1: XYZ COMPANY LIMITED | H1: www.taxhouseindia.com
A3: Annexure to Form 3CD For Assessment Year 2018-19 | E3: Annexure-23
A5: Refer Clause No. 27(b) of Form No. 3CD
A7: Expenses incurred by the assessee in any of the earlier year but debited to the Statement
A9: S No | B9: Type | C9: Particulars | D9: Amount | E9: Prior Period to which it relates (Year in YYYY-YY format)

Sheet 24
A1: XYZ COMPANY LIMITED | K1: www.taxhouseindia.com
A3: Annexure to Form 3CD For Assessment Year 2018-19 | H3: Annexure-24
A5: Refer Clause No. 31(a) of Form No. 3CD
A7: Particulars of each loan or deposit in an amount exceeding the limit specified in section 269SS taken or accepted during the previous year
A9: Name | B9: Address | C9: PAN No | D9: Amount of Loan or Deposit taken or accepted | E9: Whether the loan or deposit was squared up during the previous year | F9: Maximum amount outstanding in the account at any time during the previous year | G9: Whether the loan or deposit was taken or accepted by cheque or bank draft or use of electronic clearing system through a bank account | H9: In case the loan or deposit was taken or accepted by cheque or bank draft, whether the same was taken or aceepted by an account payee cheque or an account payee bank draft

Sheet 25
A1: XYZ COMPANY LIMITED | I1: www.taxhouseindia.com
A3: Annexure to Form 3CD For Assessment Year 2018-19 | F3: Annexure-25
A5: Refer Clause No. 31(b) of Form No. 3CD
A7: Particulars of each specified sum in an amount exceeding the limit specified in section 269SS taken or accepted during the previous year
A9: Name | B9: Address | C9: PAN No | D9: Amount of specified sum taken or accepted | E9: Whether the specified sum was taken or accepted by cheque or bank draft or use of electronic clearing system through a bank account | F9: In case thespecified sum was taken or accepted by cheque or bank draft, whether the same was taken or aceepted by an account payee cheque or an account payee bank draft

Sheet 26
A1: XYZ COMPANY LIMITED | I1: www.taxhouseindia.com
A3: Annexure to Form 3CD For Assessment Year 2018-19 | F3: Annexure-26
A5: Refer Clause No. 31(ba) of Form No. 3CD
A7: Particulars of each receipt in an amount exceeding the limit specified in section 269ST, in aggregate from a person in a day or in respect
A8: of a single transaction or in respect of transactions relating to one event or occasion from a person, during the previous year, where such
A9: receipt is otherwise than by a cheque or bank draft or use of electronic clearing system through a bank account:-
A11: Name | B11: Address | C11: PAN No | D11: Nature of Transaction | E11: Amount of receipt (In Rs.); | F11: Date of receipt

Sheet 27
A1: XYZ COMPANY LIMITED | G1: www.taxhouseindia.com
A3: Annexure to Form 3CD For Assessment Year 2018-19 | D3: Annexure-27
A5: Refer Clause No. 31(bb) of Form No. 3CD
A7: Particulars of each receipt in an amount exceeding the limit specified in section 269ST, in aggregate
A8: from a person in a day or in respect of a single transaction or in respect of transactions relating to one
A9: event or occasion from a person, received by a cheque or bank draft, not being an account payee
A10: cheque or an account payee bank draft, during the previous year:—
A12: Name | B12: Address | C12: PAN No of payer | D12: Amount of receipt (In Rs.);

Sheet 28
A1: XYZ COMPANY LIMITED | I1: www.taxhouseindia.com
A3: Annexure to Form 3CD For Assessment Year 2018-19 | F3: Annexure-28
A5: Refer Clause No. 31(bc) of Form No. 3CD
A7: Particulars of each payment made in an amount exceeding the limit specified in section 269ST, in aggregate to a person in
A8: a day or in respect of a single transaction or in respect of transactions relating to one event or occasion to a person, otherwise
A9: than by a cheque or bank draft or use of electronic clearing system through a bank account during the previous year:-
A11: Name | B11: Address | C11: PAN No of Payee | D11: Nature of transaction | E11: Amount of payment (In Rs.); | F11: Date of payment

Sheet 29
A1: XYZ COMPANY LIMITED | G1: www.taxhouseindia.com
A3: Annexure to Form 3CD For Assessment Year 2018-19 | D3: Annexure-29
A5: Refer Clause No. 31(bd) of Form No. 3CD
A7: Particulars of each payment in an amount exceeding the limit specified in section 269ST, in aggregate
A8: to a person in a day or in respect of a single transaction or in respect of transactions relating to one event
A9: or occasion to a person, made by a cheque or bank draft, not being an account payee cheque or an
A10: account payee bank draft, during the previous year:—
A12: Name | B12: Address | C12: PAN No of Payee | D12: Amount of payment (In Rs.);

Sheet 30
A1: XYZ COMPANY LIMITED | J1: www.taxhouseindia.com
A3: Annexure to Form 3CD For Assessment Year 2018-19 | G3: Annexure-30
A5: Refer Clause No. 31(c) of Form No. 3CD
A7: Particulars of each repayment of loan or deposit or any specified advance in an amount exceeding
A8: the limit specified in section 269T made during the previous year
A10: Name | B10: Address | C10: Permanent Account Number | D10: Amount of Repayment | E10: Maximum amount outstanding in the account at any time during the previous year | F10: Whether the repayment was made by cheque or bank draft or use of electronic clearing system through a bank account | G10: In case the Repayment was made by cheque or bank draft, whether the same was repaid by an account payee cheque or an account payee bank draft

Sheet 31
A1: XYZ COMPANY LIMITED | G1: www.taxhouseindia.com
A3: Annexure to Form 3CD For Assessment Year 2018-19 | D3: Annexure-31
A5: Refer Clause No. 31(d) of Form No. 3CD
A7: Particulars of each repayment of loan or deposit or any specified advance in an amount exceeding the limit
A8: specified in section 269T made during the previous year
A10: Name | B10: Address | C10: Permanent Account Number | D10: Amount of repayment of loan or deposit or any specified advance received otherwise than by cheque or bank draft or use of electronic clearing system through a bank account during the previous year

Sheet 32
A1: XYZ COMPANY LIMITED | G1: www.taxhouseindia.com
A3: Annexure to Form 3CD For Assessment Year 2018-19 | D3: Annexure-32
A5: Refer Clause No. 31(e) of Form No. 3CD
A7: Particulars of repayment of loan or deposit or any specified advance in an amount exceeding the limit specified in
A8: section 269T received by a cheque or bank draft which is not an account payee cheque or account payee bank
A9: draft during the previous year:
A11: Name | B11: Address | C11: Permanent Account Number | D11: Amount of repayment of loan or deposit or any specified advance received by a cheque or a bank draft which is not an account payee cheque or account payee bank draft during the previous year.

Sheet 33
A1: XYZ COMPANY LIMITED | I1: www.taxhouseindia.com
A3: Annexure to Form 3CD For Assessment Year 2018-19 | F3: Annexure-33
A5: Refer Clause No. 32(a) of Form No. 3CD
A7: Details of brought forward loss or depreciation allowance:
A9: Serial No | B9: Assessement year | C9: Nature of Loss / Allowance (In INR) | D9: Amount as returned (In INR) | E9: Amount as assessed | F9: Remarks

Sheet 34
A1: XYZ COMPANY LIMITED | E1: www.taxhouseindia.com
A3: Annexure to Form 3CD For Assessment Year 2018-19 | B3: Annexure-34
A5: Refer Clause No. 33 of Form No. 3CD
A7: Section-wise details of deductions admissible under Chapter VIA.
A9: Section under which deduction is claimed | B9: Amounts admissible as per the provision of the Income Tax Act, 1961

Sheet 35
A1: XYZ COMPANY LIMITED | R1: www.taxhouseindia.com
A3: Annexure to Form 3CD For Assessment Year 2018-19 | J3: Annexure-35
A5: Refer Clause No.34(a) of Form No.3CD
A7: Detail of TDS deduct or collect tax as per the provisions of Chapter XVII-B or Chapter XVII-BB on following payments:
A9: TAN | B9: Section | C9: Nature of Payment | D9: Total amount of Payment or Receipt of the nature specified in Col. 3 | E9: Total amount on which tax was required to be deducted or collected out of (4) | F9: Total amount on which tax was deducted or collected at specified rate out of (5) | G9: Amount of tax deducted or collected Out of (6) | H9: Total amount on which tax was deducted or collected at less than specified rate out of (7) | I9: Amount of tax deducted or collected on (8) | J9: Amount of tax deducted or collected not deposited to the credit of the Central Governemnt out of (6) and (8).
A10: (1) | B10: (2) | C10: (3) | D10: (4) | E10: (5) | F10: (6) | G10: (7) | H10: (8) | I10: (9) | J10: (10)
B11: 192 | C11: Salary & Wages
B12: 194C | C12: Contractor
B13: 194I | C13: Rent
B14: 194H | C14: Commissiom
B15: 194J | C15: Professional
B16: 206C | C16: TCS
A19: Note : We have verified the compliance with the provisions of Chapter XVII-B of the Income-tax Act, 1961 (the Act) relating to the deduction of tax at source and the payment thereof to the credit of the Central Government in accordance with the prevalent Auditing Standards, which contemplate, inter alia, reliance on tests checks and the concept of materiality.
A22: Considering the volume of transactions and information involved, the verification of the particulars given under this clause 34 is based on the broad review of the procedures followed for ensuring compliances, review of Internal checks, internal control, test check of transactions and facts thereof.
A25: The particulars are furnished by the management on which we have relied for completeness or accuracy.

Sheet 36
A1: XYZ COMPANY LIMITED | L1: www.taxhouseindia.com
A3: Annexure to Form 3CD For Assessment Year 2018-19 | G3: Annexure-36
A5: Refer clause 34(b) of Form 3CD
A7: Details of statement of tax deducted or tax collected furnished the for the AY 2018-19.
A9: Sr. No. | B9: Tax deduction and collection Account Number (TAN) | C9: Type of Form | D9: Due date for furnishing | E9: Date of furnishing, if furnished | F9: Whether the statement of tax deducted or collected contains information about all transactions which are required to be reported | G9: Delay in furnishing (Yes/No)
A10: 1 | C10: 24Q1 | D10: 2017-07-31
A11: 2 | C11: 24Q2 | D11: 2017-10-31
A12: 3 | C12: 24Q3 | D12: 2018-01-31
A13: 4 | C13: 24Q4 | D13: 2018-05-31
A14: 5 | C14: 26Q1 | D14: 2017-07-31
A15: 6 | C15: 26Q2 | D15: 2017-10-31
A16: 7 | C16: 26Q3 | D16: 2018-01-31
A17: 8 | C17: 26Q4 | D17: 2018-05-31
A18: 9 | C18: 27EQ1 | D18: 2017-07-31
A19: 10 | C19: 27EQ2 | D19: 2017-10-31
A20: 11 | C20: 27EQ3 | D20: 2018-01-31
A21: 12 | C21: 27EQ4 | D21: 2018-05-31

Sheet 37
A1: XYZ COMPANY LIMITED
A3: Annexure to Form 3CD For Assessment Year 2018-19 | E3: Annexure-37
A5: Refer clause 34(c) of Form 3CD
A7: Details of cases where assessee is liable to pay interest under section 201(1A)
A9: Tax deduction and collection Account Number (TAN) | B9: Section | C9: Amount of interest under section 201(1A) is payable | D9: Amount paid | E9: Date of Payment
A15: Total | C15: =SUM(C10:C14) -> 0 | D15: =SUM(D10:D14) -> 0

Sheet 38
A1: XYZ COMPANY LIMITED
A3: Annexure to Form 3CD For Assessment Year 2018-19 | E3: Annexure-38
A5: Refer clause 35(a) of Form 3CD
A7: Quantitative details of principal items of goods traded in a Trading concern:
A9: Opening Stock | B9: Purchases during the previous year; | C9: Sales during the previous year; | D9: Closing Stock | E9: Shortage/Excess, if any
A15: =SUM(A10:A14) -> 0 | B15: 0 | C15: 0 | D15: 0 | E15: =SUM(E10:E14) -> 0

Sheet 39
A1: XYZ COMPANY LIMITED | K1: www.taxhouseindia.com
A3: Annexure to Form 3CD For Assessment Year 2018-19 | E3: Annexure-39
A5: Refer clause 35(b)(A) of Form 3CD
A7: Quantitative details of the principal items of raw materials
B9: Raw Material
A10: Particulars | B10: Item I | C10: Item II | D10: Item III | E10: Item IV
A11: Opening Stock
A12: Purchases during the previous year
A13: Consumption during the previous year
A14: Sales during the previous year
A15: Closing Stock
A17: Yield of * finished products
A18: Percentage * of yield
A20: Shortage\ * | B20: 0
A21: Excess, if any
A23: *Information may be given to the extent available.

Sheet 40
A1: XYZ COMPANY LIMITED | M1: www.taxhouseindia.com
A3: Annexure to Form 3CD For Assessment Year 2018-19 | G3: Annexure-40
A5: Refer clause 35(b)(B) of Form 3CD
A7: Quantitative details of Principal items of Finished goods, By Product and WIP
B9: Finished Goods | D9: By Product | F9: Work in Progress
A10: Particulars | B10: Item I | C10: Item II | D10: Item I | E10: Item II | F10: Item I | G10: Item II
A11: Opening Stock
A12: Purchases during the Previous Year
A13: Manufacture during the Year
A14: Sales during the previous year
A15: Closing Stock
A17: shortage\ * | B17: 0
A18: excess, if any
A20: *Information may be given to the extent available.

Sheet 41
A1: XYZ COMPANY LIMITED | L1: www.taxhouseindia.com
A3: Annexure to Form 3CD For Assessment Year 2018-19 | F3: Annexure-41
A5: Refer clause 36 of Form 3CD
A7: Details of tax on distributed profits under section 115-O
A9: Amount of distributed profits | B9: Amount of reduction as referred to in section 115-O(1A)(i) | C9: Amount of reduction as referred to in section 115-O(1A)(ii) | D9: Total tax paid thereon | E9: Dates of Payment | F9: Amount

Sheet 42
A1: XYZ COMPANY LIMITED | J1: www.taxhouseindia.com
A3: Annexure to Form 3CD For Assessment Year 2018-19 | F3: Annexure-42
A5: Refer clause 40 of Form 3CD
A7: Accounting Ratios with Calculations
A9: Serial Number | B9: Particulars | D9: Previous year | F9: Preceding previous year
C10: Amount (INR) | D10: Ratio (%) | E10: Amount (INR) | F10: Ratio (%)
A11: 1 | B11: Turnover of the assessee | C11: 500 | E11: 500
A13: 2 | B13: Gross Profit Ratio | D13: =+C23/(C15+C16) -> 0.3 | F13: =+E23/(E15+E16) -> 0.3
B14: Income
B15: Sale of Services | C15: 300 | E15: 300
B16: Sale of Products | C16: 200 | E16: 200
B17: Increase/ Decrease in stocks | C17: 50 | E17: 50
B18: Total ( A ) :- | C18: =SUM(C15:C17) -> 550 | E18: =SUM(E15:E17) -> 550
B19: Cost of Goods Sold | C19: 350 | E19: 350
B20: Other Direct Cost | C20: 50 | E20: 50
B21: Total ( B ) :- | C21: =SUM(C19:C20) -> 400 | E21: =SUM(E19:E20) -> 400
B23: Gross Profit (A-B) :- | C23: =C18-C21 -> 150 | E23: =E18-E21 -> 150
A25: 3 | B25: Net Profit Ratio :- | D25: =(C26/C27) -> 0.18 | F25: =(E26/E27) -> 0.18
B26: Net Profit before Tax | C26: 90 | E26: 90
B27: Total Turnover | C27: =+C11 -> 500 | E27: =+E11 -> 500
A29: 4 | B29: Stock in Trade / Turn Over | D29: =(C30/C31) -> 0.25 | F29: =(E30/E31) -> 0.25
B30: Stock-in-Trade | C30: 50 | E30: 50
B31: Sales | C31: =+C16 -> 200 | E31: =+E16 -> 200
A33: 5 | B33: Material Consumed / Finished Goods | D33: =+C34/C35 -> 0.5 | F33: =+E34/E35 -> 0.5
B34: Material Consumed | C34: 50 | E34: 50
B35: Finished Goods | C35: 100 | E35: 100

Sheet 43
A1: XYZ COMPANY LIMITED | J1: www.taxhouseindia.com
A3: Annexure to Form 3CD For Assessment Year 2018-19 | E3: Annexure-43
A5: Refer clause 42(a) of Form 3CD
A7: Details of cases where assessee is required to furnish statement in Form No.61 or
A8: Form No. 61A or Form No. 61B
A10: Income-tax Department Reporting Entity Identification Number | B10: Type of Form | C10: Due date for furnishing | D10: Date of furnishing, if furnished | E10: Whether the Form contains information about all details/transactions which are required to be reported. If not, please furnish list of the details/transactions which are not reported.
A27: Total | C27: =SUM(C11:C26) -> 0

Sheet 44
A1: XYZ COMPANY LIMITED | J1: www.taxhouseindi.com
A3: Annexure to Form 3CD For Assessment Year 2018-19 | G3: Annexure-44
A5: Refer clause 44 of Form 3CD
A7: Break-up of total expenditure of entities registered or not registered under the GST
A9: S. No. | B9: Total amount of Expenditure incurred during the year | C9: Expenditure in respect of entities registered under GST | G9: Expenditure relating to entities not registered under GST
C10: Relating to goods or services exempt from GST | D10: Relating to entities falling under composition scheme | E10: Relating to other registered entities | F10: Total payment to registered entities
A11: (1) | B11: (2) | C11: (3) | D11: (4) | E11: (5) | F11: (6) | G11: (7)
C13: Defer till 31st March 2019
A16: Total | B16: =SUM(B12:B15) -> 0 | C16: =SUM(C12:C15) -> 0 | D16: 0 | E16: 0 | F16: 0 | G16: 0
